fUSD/lending_fUSD_20250512
["ID","MTS","AMOUNT","RATE_DAILY","PERIOD"]
[360871859,1747090269019,-304.26,0.00013965,2]
[360871860,1747090269028,-300.4,0.00013965,2]
[360871861,1747090269038,-301.31,0.00013965,2]
[360871862,1747090269046,-302.03,0.00013965,2]
[360871863,1747090269057,-305.21,0.00013965,2]
[360871864,1747090269066,-302.11,0.00013965,2]
[360871865,1747090269076,-303.61,0.00013965,2]
[360871866,1747090269085,-1857.61,0.00013971,2]
[360871867,1747090269096,-500.0,0.00013971,2]
[360871868,1747090269105,-300.48,0.00013971,2]
[360871869,1747090269116,-400.0,0.00013972,2]
[360871870,1747090269126,-400.0,0.00013972,2]
[360871871,1747090269136,-400.0,0.00013972,2]
[360871872,1747090269145,-400.0,0.00013972,2]
[360871873,1747090269154,-400.0,0.00013972,2]
[360871874,1747090269163,-400.0,0.00013972,2]
[360871875,1747090269173,-400.0,0.00013972,2]
[360871876,1747090269311,-400.0,0.00013972,2]
[360871877,1747090269321,-400.0,0.00013972,2]
[360871878,1747090269330,-400.0,0.00013972,2]
[360871879,1747090269339,-310.87479415,0.00013972,2]
[360871880,1747090269349,-400.0,0.00013972,2]
[360871881,1747090269359,-400.0,0.00013972,2]
[360871882,1747090269367,-400.0,0.00013972,2]
[360871883,1747090269377,-400.0,0.00013972,2]
[360871884,1747090269387,-400.0,0.00013972,2]
[360871885,1747090269396,-400.0,0.00013972,2]
[360871886,1747090269406,-400.0,0.00013972,2]
[360871887,1747090269415,-883.65,0.00013972,2]
[360871888,1747090269425,-400.0,0.00013972,2]
[360871889,1747090269434,-1364.47,0.00013972,2]
[360871890,1747090269444,-400.0,0.00013972,2]
[360871891,1747090269453,-400.0,0.00013972,2]
[360871892,1747090269462,-534.9,0.00013972,2]
[360871893,1747090269472,-403.02,0.00013972,2]
[360871894,1747090269482,-400.0,0.00013972,2]
[360871895,1747090269491,-626.91,0.00013972,2]
[360871896,1747090269501,-416.21,0.00013972,2]
[360871897,1747090269510,-698.81,0.00013972,2]
[360871898,1747090269520,-400.0,0.00013972,2]
[360871899,1747090269530,-248.38,0.00013972,2]
[360871900,1747090269540,-615.59,0.00013972,2]
[360871901,1747090269549,-400.0,0.00013972,2]
[360871902,1747090269559,-610.58,0.00013972,2]
[360871903,1747090269570,-400.0,0.00013972,2]
[360871904,1747090269579,-1281.75,0.00013972,2]
[360871905,1747090269589,-1077.2,0.00013972,2]
[360871906,1747090269599,-400.0,0.00013972,2]
[360871907,1747090269608,-400.0,0.00013972,2]
[360871908,1747090269618,-450.47,0.00013972,2]
[360871909,1747090269628,-400.0,0.00013972,2]
[360871910,1747090269638,-463.72,0.00013972,2]
[360871911,1747090269647,-400.0,0.00013972,2]
[360871912,1747090269657,-400.0,0.00013972,2]
[360871913,1747090269666,-400.0,0.00013972,2]
[360871914,1747090269675,-400.0,0.00013972,2]
[360871915,1747090269685,-400.0,0.00013972,2]
[360871916,1747090269695,-400.0,0.00013972,2]
[360871917,1747090269704,-400.0,0.00013972,2]
[360871918,1747090269713,-1108.94,0.00013972,2]
[360871919,1747090269723,-400.0,0.00013972,2]
[360871920,1747090269733,-755.78,0.00013972,2]
[360871921,1747090269742,-400.0,0.00013972,2]
[360871922,1747090269751,-400.0,0.00013972,2]
[360871923,1747090269760,-400.0,0.00013972,2]
[360871924,1747090269769,-787.18,0.00013972,2]
[360871925,1747090269778,-400.0,0.00013972,2]
[360871926,1747090269787,-400.0,0.00013972,2]
[360871927,1747090269796,-499.68,0.00013972,2]
[360871928,1747090269806,-400.0,0.00013972,2]
[360871929,1747090269815,-936.95,0.00013972,2]
[360871930,1747090269824,-400.0,0.00013972,2]
[360871931,1747090269833,-400.0,0.00013972,2]
[360871932,1747090269842,-848.11,0.00013972,2]
[360871933,1747090269851,-1083.17,0.00013972,2]
[360871934,1747090269860,-400.0,0.00013972,2]
[360871935,1747090269869,-926.94,0.00013972,2]
[360871936,1747090269879,-420.95,0.00013972,2]
[360871937,1747090269888,-400.0,0.00013972,2]
[360871938,1747090269897,-603.5,0.00013972,2]
[360871939,1747090269907,-576.3,0.00013972,2]
[360871940,1747090269917,-400.0,0.00013972,2]
[360871941,1747090269926,-400.0,0.00013972,2]
[360871942,1747090269937,-400.0,0.00013972,2]
[360871943,1747090269946,-400.0,0.00013972,2]
[360871944,1747090269955,-400.0,0.00013972,2]
[360871945,1747090269965,-400.0,0.00013972,2]
[360871946,1747090269976,-511.37883796,0.00013972,2]
[360871947,1747090269986,-400.0,0.00013972,2]
[360871948,1747090269995,-501.55,0.00013972,2]
[360871949,1747090270006,-400.0,0.00013972,2]
[360871950,1747090270017,-400.0,0.00013972,2]
[360871951,1747090270027,-400.0,0.00013972,2]
[360871952,1747090270036,-400.0,0.00013972,2]
[360871953,1747090270045,-400.0,0.00013972,2]
[360871954,1747090270055,-400.0,0.00013972,2]
[360871955,1747090270064,-400.0,0.00013972,2]
[360871956,1747090270073,-400.0,0.00013972,2]
[360871957,1747090270083,-500.0,0.00013972,2]
[360871958,1747090270092,-400.0,0.00013972,2]
[360871959,1747090270102,-400.0,0.00013972,2]
[360871960,1747090270111,-400.0,0.00013972,2]
[360871961,1747090270121,-22191.74,0.00013972,2]
[360871962,1747090270130,-1077.72,0.00013972,2]
[360871963,1747090270140,-400.0,0.00013972,2]
[360871964,1747090270150,-1242.42,0.00013972,2]
[360871965,1747090270161,-8204.41,0.00013972,2]
[360871966,1747090270173,-1722.69,0.00013972,2]
[360871967,1747090270184,-400.0,0.00013972,2]
[360871968,1747090270194,-400.0,0.00013972,2]
[360871969,1747090270203,-9161.74,0.00013972,2]
[360871970,1747090270212,-198.65300979,0.00013972,2]
[360871971,1747090270223,-2383.23,0.00013972,2]
[360871972,1747090270233,-1779.51,0.00013972,2]
[360871973,1747090270242,-400.0,0.00013972,2]
[360871974,1747090270252,-501.77,0.00013972,2]
[360871975,1747090270261,-1393.58,0.00013972,2]
[360871976,1747090270270,-1227.91,0.00013972,2]
[360871977,1747090270279,-250.0,0.00013972,2]
[360871978,1747090270289,-479.64,0.00013972,2]
[360871979,1747090270299,-3610.95,0.00013972,2]
[360871980,1747090270308,-400.0,0.00013972,2]
[360871981,1747090270317,-519.74,0.00013972,2]
[360871982,1747090270327,-685.31,0.00013972,2]
[360871983,1747090270336,-400.0,0.00013972,2]
[360871984,1747090270344,-327.27211495,0.00013972,2]
[360871985,1747090270353,-400.0,0.00013972,2]
[360871986,1747090270363,-400.0,0.00013972,2]
[360871987,1747090270372,-1340.79,0.00013972,2]
[360871988,1747090270381,-400.0,0.00013972,2]
[360871989,1747090270391,-1784.89,0.00013972,2]
[360871990,1747090270400,-1351.76,0.00013972,2]
[360871991,1747090270409,-400.0,0.00013972,2]
[360871992,1747090270418,-400.0,0.00013972,2]
[360871993,1747090270427,-400.0,0.00013972,2]
[360871994,1747090270436,-1888.25,0.00013972,2]
[360871995,1747090270445,-598.67,0.00013972,2]
[360871996,1747090270454,-1883.81,0.00013972,2]
[360871997,1747090270463,-988.13,0.00013972,2]
[360871998,1747090270473,-400.0,0.00013972,2]
[360871999,1747090270482,-1219.37,0.00013972,2]
[360872000,1747090270491,-400.0,0.00013972,2]
[360872001,1747090270500,-491.59,0.00013972,2]
[360872002,1747090270509,-1000.0,0.00013972,2]
[360872003,1747090270519,-674.12,0.00013972,2]
[360872004,1747090270528,-433.79,0.00013972,2]
[360872005,1747090270537,-1174.28,0.00013972,2]
[360872006,1747090270546,-503.82,0.00013972,2]
[360872007,1747090270555,-1144.55,0.00013972,2]
[360872008,1747090270564,-1062.2,0.00013972,2]
[360872009,1747090270574,-400.0,0.00013972,2]
[360872010,1747090270583,-400.0,0.00013972,2]
[360872011,1747090270592,-609.33,0.00013972,2]
[360872012,1747090270601,-647.84,0.00013972,2]
[360872013,1747090270611,-649.86,0.00013972,2]
[360872014,1747090270620,-1328.87,0.00013972,2]
[360872015,1747090270629,-548.63,0.00013972,2]
[360872016,1747090270639,-403.82,0.00013972,2]
[360872017,1747090270648,-400.0,0.00013972,2]
[360872018,1747090270658,-1115.3,0.00013972,2]
[360872019,1747090270667,-510.53,0.00013972,2]
[360872020,1747090270676,-400.0,0.00013972,2]
[360872021,1747090270685,-400.0,0.00013972,2]
[360872022,1747090270695,-400.0,0.00013972,2]
[360872023,1747090270704,-947.34,0.00013972,2]
[360872024,1747090270713,-473.1,0.00013972,2]
[360872025,1747090270724,-573.39,0.00013972,2]
[360872026,1747090270733,-1884.67,0.00013972,2]
[360872027,1747090270743,-400.0,0.00013972,2]
[360872028,1747090270752,-465.16,0.00013972,2]
[360872029,1747090270761,-400.0,0.00013972,2]
[360872030,1747090270770,-400.0,0.00013972,2]
[360872031,1747090270779,-400.0,0.00013972,2]
[360872032,1747090270788,-1107.81,0.00013972,2]
[360872033,1747090270797,-400.0,0.00013972,2]
[360872034,1747090270806,-1826.33,0.00013972,2]
[360872035,1747090270815,-400.0,0.00013972,2]
[360872036,1747090270824,-400.0,0.00013972,2]
[360872037,1747090270833,-400.0,0.00013972,2]
[360872038,1747090270842,-479.61,0.00013972,2]
[360872039,1747090270851,-546.39,0.00013972,2]
[360872040,1747090270861,-1181.47,0.00013972,2]
[360872041,1747090270870,-1424.62,0.00013972,2]
[360872042,1747090270879,-2632.32,0.00013972,2]
[360872043,1747090270889,-400.0,0.00013972,2]
[360872044,1747090270898,-830.84,0.00013972,2]
[360872045,1747090270907,-400.0,0.00013972,2]
[360872046,1747090270916,-400.0,0.00013972,2]
[360872047,1747090270925,-1276.5,0.00013972,2]
[360872048,1747090270934,-405.17,0.00013972,2]
[360872049,1747090270944,-609.72,0.00013972,2]
[360872050,1747090270953,-3091.33,0.00013972,2]
[360872051,1747090270963,-152.65,0.00013972,2]
[360872052,1747090270972,-763.58,0.00013972,2]
[360872053,1747090270982,-400.0,0.00013972,2]
[360872054,1747090270991,-2781.29,0.00013972,2]
[360872055,1747090271001,-400.0,0.00013972,2]
[360872056,1747090271012,-400.0,0.00013972,2]
[360872057,1747090271022,-400.0,0.00013972,2]
[360872058,1747090271031,-2077.21,0.00013972,2]
[360872059,1747090271041,-400.0,0.00013972,2]
[360872060,1747090271052,-400.0,0.00013972,2]
[360872061,1747090271061,-400.0,0.00013972,2]
[360872062,1747090271070,-471.09,0.00013972,2]
[360872063,1747090271080,-400.0,0.00013972,2]
[360872064,1747090271091,-400.0,0.00013972,2]
[360872065,1747090271103,-400.0,0.00013972,2]
[360872066,1747090271113,-400.0,0.00013972,2]
[360872067,1747090271122,-2887.32,0.00013972,2]
[360872068,1747090271131,-501.45,0.00013972,2]
[360872069,1747090271141,-400.0,0.00013972,2]
[360872070,1747090271150,-400.0,0.00013972,2]
[360872071,1747090271158,-434.50972266,0.00013972,2]
[360872072,1747090271167,-42296.92,0.00013972,2]
[360872073,1747090271176,-579.81,0.00013972,2]
[360872074,1747090271186,-400.0,0.00013972,2]
[360872075,1747090271195,-541.25,0.00013972,2]
[360872076,1747090271204,-403.37,0.00013972,2]
[360872077,1747090271213,-400.0,0.00013972,2]
[360872078,1747090271224,-498.85,0.00013972,2]
[360872079,1747090271233,-4777.4,0.00013972,2]
[360872080,1747090271242,-400.0,0.00013972,2]
[360872081,1747090271252,-416.48,0.00013972,2]
[360872082,1747090271262,-1091.07,0.00013972,2]
[360872083,1747090271271,-400.0,0.00013972,2]
[360872084,1747090271281,-9419.15,0.00013972,2]
[360872085,1747090271290,-954.11,0.00013972,2]
[360872086,1747090271300,-3455.79,0.00013972,2]
[360872087,1747090271312,-4860.9043154,0.00013972,2]
[360872088,1747090271797,-11531.74154316,0.00013972,2]
[360872089,1747090271809,-17393.65579677,0.00013972,2]
[360872090,1747090271820,-22212.49311126,0.00013972,2]
[360872091,1747090271831,-1884.56523341,0.00013972,2]
[360872092,1747090271841,-432.44529739,0.00013972,2]
[360872093,1747090271850,-400.0,0.00013972,2]
[360872094,1747090271859,-401.56,0.00013972,2]
[360872095,1747090271868,-325.25056206,0.00013972,2]
[360872096,1747090271880,-74.74943794,0.00013972,2]
[360872097,1747090271889,-400.0,0.00013972,2]
[360872098,1747090271898,-400.0,0.00013972,2]
[360872099,1747090271907,-400.0,0.00013972,2]
[360872100,1747090271917,-469.40890029,0.00013972,2]
[360872101,1747090271927,-400.0,0.00013972,2]
[360872102,1747090271936,-400.0,0.00013972,2]
[360872103,1747090271945,-694.22,0.00013972,2]
[360872104,1747090271954,-733.43717883,0.00013972,2]
[360872105,1747090271966,-511.64282117,0.00013972,2]
[360872106,1747090271978,-892.76,0.00013972,2]
[360872107,1747090271988,-737.8,0.00013972,2]
[360872108,1747090271999,-400.0,0.00013972,2]
[360872109,1747090272014,-1619.34,0.00013972,2]
[360872110,1747090272024,-400.0,0.00013972,2]
[360872111,1747090272034,-400.0,0.00013972,2]
[360872112,1747090272044,-400.0,0.00013972,2]
[360872113,1747090272055,-400.0,0.00013972,2]
[360872114,1747090272064,-400.0,0.00013972,2]
[360872115,1747090272073,-1801.97,0.00013972,2]
[360872116,1747090272084,-1735.12,0.00013972,2]
[360872117,1747090272094,-400.0,0.00013972,2]
[360872118,1747090272103,-1502.36,0.00013972,2]
[360872119,1747090272113,-1950.07,0.00013972,2]
[360872120,1747090272122,-400.0,0.00013972,2]
[360872121,1747090272132,-1300.57,0.00013972,2]
[360872122,1747090272141,-774.87,0.00013972,2]
[360872123,1747090272151,-400.0,0.00013972,2]
[360872124,1747090272160,-400.0,0.00013972,2]
[360872125,1747090272170,-2534.03,0.00013972,2]
[360872126,1747090272180,-8925.8,0.00013972,2]
[360872127,1747090272190,-400.0,0.00013972,2]
[360872128,1747090272199,-400.0,0.00013972,2]
[360872129,1747090272209,-500.0,0.00013973,2]
[360872130,1747090272218,-545.75907008,0.00013973,2]
[360872131,1747090272233,-200.0,0.00013998,2]
[360872132,1747090272242,-200.0,0.00013998,2]
[360872133,1747090272252,-250.0,0.00013998,2]
[360872134,1747090272261,-5003.42045132,0.00014,2]
[360872135,1747090272271,-300.29,0.00014,2]
[360872136,1747090272280,-3883.0,0.00014,2]
[360872137,1747090272290,-5042.77984401,0.00014,2]
[360872138,1747090272334,-8245.7839802,0.00014,2]
[360872139,1747090272344,-242.217158,0.00014,2]
[360872140,1747090272354,-300.72,0.00014001,2]
[360872141,1747090272363,-302.82,0.00014001,2]
[360872142,1747090272372,-304.1,0.00014001,2]
[360872143,1747090272381,-1857.61,0.00014026,2]
[360872144,1747090272391,-1857.61,0.00014026,2]
[360872145,1747090272400,-500.0,0.00014026,2]
[360872146,1747090272410,-500.0,0.00014026,2]
[360872147,1747090272419,-3178.34855686,0.00014027,2]
[360872148,1747090272434,-4409.74608926,0.00014027,2]
[360872149,1747090272446,-442.384,0.00014027,2]
[360872150,1747090272457,-641.60173434,0.00014027,2]
[360872151,1747090272483,-400.0,0.00013698,2]
[360872152,1747090272493,-377.88564674,0.00013808,2]
[360872153,1747090272512,-400.0,0.00013753,2]
[360872154,1747090272522,-243.83435326,0.00013808,2]
[360872155,1747090272531,-3715.51747387,0.00014027,2]
[360872156,1747090272542,-3219.85439505,0.00014027,2]
[360872157,1747090283579,325.62,0.00011193,2]
[360872178,1747090719418,150.0,0.00013699,7]
[360872182,1747091304490,309.33,0.00010892,2]
[360872227,1747091431688,-500.0,0.00012784,3]
[360872228,1747091431698,-150.0,0.00012786,2]
[360872229,1747091431707,-200.0,0.0001279,2]
[360872230,1747091431716,-1000.0,0.00012796,2]
[360872231,1747091431726,-200.0,0.00012865,2]
[360872232,1747091431735,-196.52,0.00012884,2]
[360872233,1747091431744,-309.33,0.00013156,2]
[360872234,1747091431754,-4029.0,0.00013572,2]
[360872235,1747091431763,-154.0,0.00013572,2]
[360872236,1747091431772,-3559.7608435,0.00013598,2]
[360872237,1747091431783,-1158.96316845,0.00013598,2]
[360872238,1747091431793,-1200.0,0.00013651,2]
[360872239,1747091431802,-1119.04107162,0.00013653,2]
[360872240,1747091431813,-2488.9,0.00013653,2]
[360872241,1747091431841,-378.62807567,0.00013653,2]
[360872242,1747091431850,-170.35917614,0.00013653,2]
[360872243,1747091431860,-37899.99542194,0.00013688,2]
[360872244,1747091431870,-207.4,0.0001369,2]
[360872245,1747091431880,-151.0,0.00013698,2]
[360872246,1747091431892,-151.0,0.00013698,2]
[360872247,1747091431902,-151.0,0.00013698,2]
[360872248,1747091431911,-151.0,0.00013698,2]
[360872249,1747091431920,-151.0,0.00013698,2]
[360872250,1747091431930,-7675.82732625,0.00013698,2]
[360872251,1747091431944,-4372.61588588,0.00013698,2]
[360872253,1747091431953,-400.0,0.00013698,2]
[360872255,1747091431962,-400.0,0.00013698,2]
[360872257,1747091431971,-425.84604749,0.00013698,2]
[360872259,1747091431981,-400.0,0.00013698,2]
[360872261,1747091431992,-400.0,0.00013698,2]
[360872263,1747091432001,-1764.112,0.00013698,2]
[360872265,1747091432011,-160.355,0.00013698,2]
[360872266,1747091432020,-400.0,0.00013698,2]
[360872267,1747091432029,-400.0,0.00013698,2]
[360872268,1747091432039,-400.0,0.00013698,2]
[360872269,1747091432048,-352.79992504,0.00013698,2]
[360872270,1747091432057,-400.0,0.00013698,2]
[360872271,1747091432066,-96.64114159,0.00013698,2]
[360872272,1747091432084,-303.35885841,0.00013698,2]
[360872273,1747091432093,-490.26948472,0.00013698,2]
[360872274,1747091432103,-634.48875087,0.00013698,2]
[360872275,1747091432114,-443.07910095,0.00013698,2]
[360872279,1747091437527,-400.0,0.00013698,2]
[360872281,1747091437536,-1022.37,0.00013698,2]
[360872282,1747091437545,-400.0,0.00013698,2]
[360872283,1747091437555,-400.0,0.00013698,2]
[360872284,1747091437564,-400.0,0.00013698,2]
[360872285,1747091437573,-400.0,0.00013698,2]
[360872286,1747091437582,-151.79159116,0.00013698,2]
[360872287,1747091437591,-312.02387379,0.00013698,2]
[360872288,1747091437600,-400.0,0.00013698,2]
[360872289,1747091437610,-400.0,0.00013698,2]
[360872290,1747091437619,-400.0,0.00013698,2]
[360872291,1747091437628,-400.0,0.00013698,2]
[360872292,1747091437637,-400.0,0.00013698,2]
[360872293,1747091437647,-400.0,0.00013698,2]
[360872294,1747091437658,-400.0,0.00013698,2]
[360872295,1747091437667,-400.0,0.00013698,2]
[360872296,1747091437677,-400.0,0.00013698,2]
[360872297,1747091437686,-400.0,0.00013698,2]
[360872298,1747091437695,-400.0,0.00013698,2]
[360872299,1747091437704,-831.71,0.00013698,2]
[360872300,1747091437714,-400.0,0.00013698,2]
[360872301,1747091437723,-400.0,0.00013698,2]
[360872302,1747091437733,-624.16,0.00013698,2]
[360872303,1747091437742,-400.0,0.00013698,2]
[360872304,1747091437752,-400.0,0.00013698,2]
[360872305,1747091437762,-590.38,0.00013698,2]
[360872306,1747091437771,-400.0,0.00013698,2]
[360872307,1747091437780,-400.0,0.00013698,2]
[360872308,1747091437789,-400.0,0.00013698,2]
[360872309,1747091437799,-457.93,0.00013698,2]
[360872310,1747091437807,-400.0,0.00013698,2]
[360872311,1747091437817,-400.0,0.00013698,2]
[360872312,1747091437826,-184.18746016,0.00013698,2]
[360872313,1747091437863,-215.81253984,0.00013698,2]
[360872314,1747091437873,-400.0,0.00013698,2]
[360872315,1747091437883,-400.0,0.00013698,2]
[360872316,1747091437892,-812.38,0.00013698,2]
[360872317,1747091437901,-450.0,0.00013698,2]
[360872318,1747091437912,-400.0,0.00013698,2]
[360872319,1747091437921,-400.0,0.00013698,2]
[360872320,1747091437931,-400.0,0.00013698,2]
[360872322,1747091437941,-695.21,0.00013698,2]
[360872324,1747091437950,-295.93991067,0.00013698,2]
[360872326,1747091437962,-104.06008933,0.00013698,2]
[360872328,1747091437972,-173.51094446,0.00013698,2]
[360872334,1747091438023,-226.48905554,0.00013698,2]
[360872336,1747091438032,-248.89094446,0.00013698,2]
[360872339,1747091438043,-559.00905554,0.00013698,2]
[360872340,1747091438053,-432.23,0.00013698,2]
[360872342,1747091438062,-400.0,0.00013698,2]
[360872344,1747091438071,-400.0,0.00013698,2]
[360872346,1747091438080,-400.0,0.00013698,2]
[360872348,1747091438089,-400.0,0.00013698,2]
[360872350,1747091438098,-400.0,0.00013698,2]
[360872352,1747091438108,-400.0,0.00013698,2]
[360872354,1747091438117,-400.0,0.00013698,2]
[360872356,1747091438126,-400.0,0.00013698,2]
[360872358,1747091438136,-400.0,0.00013698,2]
[360872360,1747091438145,-170.19,0.00013698,2]
[360872361,1747091438154,-400.0,0.00013698,2]
[360872363,1747091438163,-400.0,0.00013698,2]
[360872365,1747091438173,-400.0,0.00013698,2]
[360872367,1747091438183,-400.0,0.00013698,2]
[360872368,1747091438192,-400.0,0.00013698,2]
[360872369,1747091438201,-229.78,0.00013698,2]
[360872370,1747091438210,-400.0,0.00013698,2]
[360872372,1747091438219,-400.0,0.00013698,2]
[360872374,1747091438228,-253.49278898,0.00013698,2]
[360872376,1747091438236,-234.56690229,0.00013698,2]
[360872377,1747091438246,-400.0,0.00013698,2]
[360872379,1747091438255,-460.7,0.00013698,2]
[360872381,1747091438264,-160.5798992,0.00013698,2]
[360872383,1747091438273,-400.0,0.00013698,2]
[360872385,1747091438282,-394.4,0.00013698,2]
[360872387,1747091438291,-400.0,0.00013698,2]
[360872389,1747091438300,-454.20651629,0.00013698,2]
[360872391,1747091438309,-400.0,0.00013698,2]
[360872393,1747091438318,-400.0,0.00013698,2]
[360872395,1747091438329,-400.0,0.00013698,2]
[360872396,1747091438339,-411.04,0.00013698,2]
[360872397,1747091438349,-400.0,0.00013698,2]
[360872398,1747091438360,-400.0,0.00013698,2]
[360872399,1747091438369,-400.0,0.00013698,2]
[360872400,1747091438378,-400.0,0.00013698,2]
[360872401,1747091438388,-400.0,0.00013698,2]
[360872402,1747091438402,-400.0,0.00013698,2]
[360872403,1747091438412,-198.6632502,0.00013698,2]
[360872406,1747091440329,-201.3367498,0.00013698,2]
[360872407,1747091440339,-931.81,0.00013698,2]
[360872408,1747091440352,-1292.02,0.00013698,2]
[360872409,1747091440362,-400.0,0.00013698,2]
[360872410,1747091440371,-400.0,0.00013698,2]
[360872411,1747091440381,-245.36972157,0.00013698,2]
[360872555,1747091446239,-154.63027843,0.00013698,2]
[360872556,1747091446250,-400.0,0.00013698,2]
[360872557,1747091446259,-400.0,0.00013698,2]
[360872558,1747091446269,-400.0,0.00013698,2]
[360872559,1747091446279,-400.0,0.00013698,2]
[360872560,1747091446288,-400.0,0.00013698,2]
[360872561,1747091446297,-307.91954157,0.00013698,2]
[360872566,1747092223865,391.0,0.00028,120]
[360872568,1747092308017,278.39,0.00010855,2]
[360872602,1747092599989,171.0,0.00028,120]
[360872618,1747092631963,-1172.36,0.00012731,2]
[360872619,1747092631974,-200.0,0.0001274,2]
[360872620,1747092631983,-1200.0,0.00012749,2]
[360872621,1747092631992,-2205.94,0.0001275,2]
[360872622,1747092632104,-5061.02,0.0001275,2]
[360872623,1747092632113,-1000.0,0.00012754,2]
[360872624,1747092632123,-200.0,0.00012767,2]
[360872625,1747092632132,-300.0,0.00012813,2]
[360872626,1747092632141,-903.34,0.00012814,2]
[360872627,1747092632151,-381.8,0.00012824,2]
[360872628,1747092632160,-278.39,0.00013119,2]
[360872629,1747092632170,-156.03211,0.000135,2]
[360872630,1747092632179,-207.4,0.0001359,2]
[360872631,1747092632188,-4246.85161071,0.00013598,2]
[360872632,1747092632198,-158.98189596,0.00013598,2]
[360872633,1747092632208,-500.0,0.00013616,2]
[360872634,1747092632217,-3649.67393257,0.00013653,2]
[360872635,1747092632227,-170.35917614,0.00013653,2]
[360872636,1747092632236,-671.50747916,0.00013688,2]
[360872637,1747092632245,-27372.18699475,0.00013698,2]
[360872638,1747092632255,-400.0,0.00013698,2]
[360872639,1747092632264,-400.0,0.00013698,2]
[360872641,1747092632273,-200.0,0.00013698,2]
[360872643,1747092632283,-400.0,0.00013698,2]
[360872644,1747092632292,-400.0,0.00013698,2]
[360872646,1747092632301,-400.0,0.00013698,2]
[360872648,1747092632311,-400.0,0.00013698,2]
[360872650,1747092632320,-400.0,0.00013698,2]
[360872652,1747092632329,-400.0,0.00013698,2]
[360872653,1747092632339,-400.0,0.00013698,2]
[360872655,1747092632348,-400.0,0.00013698,2]
[360872657,1747092632357,-400.0,0.00013698,2]
[360872659,1747092632366,-379.13,0.00013698,2]
[360872660,1747092632376,-400.0,0.00013698,2]
[360872662,1747092632384,-400.0,0.00013698,2]
[360872663,1747092632394,-400.0,0.00013698,2]
[360872665,1747092632403,-200.85829949,0.00013698,2]
[360872666,1747092632416,-404.4750197,0.00013698,2]
[360872760,1747092637955,-372.87803105,0.00013698,2]
[360872769,1747092639967,-493.39464976,0.00013698,2]
[360872770,1747092639977,-160.355,0.00013698,2]
[360872771,1747092639986,-140.22292445,0.00013698,2]
[360872772,1747092639997,-259.77707555,0.00013698,2]
[360872773,1747092640007,-369.45979497,0.00013698,2]
[360872774,1747092640033,-12.53822078,0.00013698,2]
[360872775,1747092640042,-400.0,0.00013698,2]
[360872776,1747092640052,-497.11765966,0.00013698,2]
[360872777,1747092640065,-41.98065339,0.00013698,2]
[360872778,1747092640074,-403.26584892,0.00013698,2]
[360872779,1747092640084,-400.0,0.00013698,2]
[360872780,1747092640094,-400.0,0.00013698,2]
[360872781,1747092640103,-400.0,0.00013698,2]
[360872782,1747092640112,-200.0,0.00013698,2]
[360872783,1747092640122,-235.52795145,0.00013698,2]